Cogmind - Beta 13 @@@ ROGUE MODE // 2024.04.07 @ 22:14:30 Player: Toa of Guts Result: Destroyed self with Mini Grenade Launcher Performance ------------- Evolutions (2) 1000 Regions Visited (3) 600 Robots Destroyed (24) 120 Value Destroyed (811) 811 Prototype IDs (0) 0 Alien Tech Used (0) 0 Bonus (0) 0 TOTAL SCORE: 2531 Bonus ------- None Cogmind --------- Core Integrity 0/550 Matter 280/300 Energy 39/100 System Corruption 0% Temperature Cool (0) Movement Core (50) Location -8/Materials Parts ------- > --- POWER (1) -------- (None) > --- PROPULSION (3) --- (None) > --- UTILITY (3) ------ Machine Analyzer > --- WEAPON (4) ------- Mini Grenade Launcher Welding Torch > --- INVENTORY (5) ---- Armored Treads Wheel Compact Wheel Sensor Array Peak State ------------ > --- POWER ------------ Reinforced Ion Engine > --- PROPULSION ------- Aluminum Leg Aluminum Leg Aluminum Leg > --- UTILITY ---------- Heat Sink Small Storage Unit Machine Analyzer > --- WEAPON ----------- Small Laser Light Assault Rifle Light Assault Rifle Mini Grenade Launcher > --- INVENTORY -------- Armored Treads Aluminum Leg Aluminum Leg Wheel Compact Wheel Structural Scanner Sensor Array Light Assault Rifle [Rating: 16] Favorites ----------- Power Reinforced Ion Engine Engine Reinforced Ion Engine Propulsion Aluminum Leg Leg Aluminum Leg Utility Small Storage Unit Device Heat Sink Storage Small Storage Unit Processor Machine Analyzer Protection Light Armor Plating Weapon Light Assault Rifle Energy Gun Medium Laser Ballistic Gun Light Assault Rifle Launcher Mini Grenade Launcher Special Weapon Welding Torch Slashing Weapon Axe Build | -11 -10 -9 -8 ------- Run | Yrd Mat Mat Mat Slots Evolved 4 | . . 2 2 Power . | . . . . Propulsion 1 | . . . 1 Utility 1 | . . . 1 Weapon 2 | . . 2 . Parts Attached 38 | 6 5 16 11 Power 5 | 1 1 3 . Engine 5 | 1 1 3 . Core . | . . . . Reactor . | . . . . Propulsion 11 | 2 . 5 4 Treads . | . . . . Leg 11 | 2 . 5 4 Wheel . | . . . . Hover . | . . . . Flight . | . . . . Utility 5 | 1 1 1 2 Device 1 | . . 1 . Storage 1 | 1 . . . Processor 1 | . . . 1 Hackware . | . . . . Protection 2 | . 1 . 1 Artifact . | . . . . Weapon 17 | 2 3 7 5 Energy Gun 4 | 2 1 1 . Energy Cannon . | . . . . Ballistic Gun 8 | . 2 5 1 Ballistic Cannon . | . . . . Launcher 3 | . . 1 2 Special Weapon 1 | . . . 1 Impact Weapon . | . . . . Slashing Weapon 1 | . . . 1 Piercing Weapon . | . . . . Special Melee Weapon . | . . . . Unidentified Prototypes . | . . . . Parts Lost 21 | . . 6 15 Power 3 | . . 2 1 Propulsion 7 | . . 1 6 Utility 4 | . . 1 3 Weapon 7 | . . 2 5 Highest Loss Streak 9 | . . 6 9 To Critical Strikes . | . . . . Average Slot Usage (%) 81 | . 86 81 76 Engine 10 | . 14 10 7 Leg 22 | . 28 21 20 Device 4 | . . 5 6 Storage 10 | . 14 11 8 Processor 3 | . . . 8 Protection 1 | . 1 3 . Energy Gun 9 | . 14 10 5 Ballistic Gun 17 | . 14 18 18 Naked Turns . | . . . . Heaviest Build 20 | 12 16 20 20 Greatest Support 30 | 20 20 20 30 Greatest Overweight (x) 3 | 3 . . 1 Average Overweight (x) . | . . . . Largest Inventory Capacity 8 | 8 8 8 8 Average Capacity 7 | 7 8 8 7 Most Carried 8 | 6 8 8 8 Average Carried 7 | 3 7 7 7 Final Capacity 8 | 8 8 8 5 Final Carried 8 | 6 8 8 4 Class Distribution -------------------- 58% | Mutant 23% | Scavenger-Gunner 18% | Scavenger-Skirmisher Dominant Class ---------------- Mutant | -10/Materials Scavenger-Gunner | -9/Materials Scavenger-Skirmisher | -8/Materials Resources | -11 -10 -9 -8 ----------- Run | Yrd Mat Mat Mat Matter Collected 627 | 221 93 124 189 Remotely . | . . . . Salvage Created 750 | . 112 233 405 Parts 43 | . 8 15 20 Haulers Intercepted . | . . . . Recyclers Shooed . | . . . . Parts Field Recycled . | . . . . Retrieved Matter . | . . . . Parts Self-Destructed . | . . . . Prevented . | . . . . Kills | -11 -10 -9 -8 ------- Run | Yrd Mat Mat Mat Combat Hostiles Destroyed 24 | . 5 8 11 Melee 3 | . . . 3 Guns 15 | . 5 6 4 AOE 6 | . . 2 4 Classes Destroyed 4 | . 2 . 2 Swarmer 7 | . 3 4 . Grunt 13 | . 2 4 7 Duelist 1 | . . . 1 Sentry 3 | . . . 3 Best Kill Streak 6 | . 3 3 6 Combat Bots Only 6 | . 3 3 6 Max Kills in Single Turn 3 | . 1 2 3 Gunslinging 1 | . . 1 . Exploded 3 | . . 1 3 Melee 1 | . . . 1 Uniques/NPCs Destroyed . | . . . . Combat | -11 -10 -9 -8 -------- Run | Yrd Mat Mat Mat Hostile Shots Fired 269 | . 20 109 140 Missed 76 | . 4 34 38 Damage Taken 2748 | . 146 799 1803 Core 744 | . 17 162 565 Absorbed by Shields . | . . . . Core Remaining (%) 84 | 100 93 59 . Volleys Fired 73 | . 14 25 34 Largest 4 | . 2 2 4 Hottest 100 | . 70 70 100 Shots Fired 139 | . 28 48 63 Gun 123 | . 28 46 49 Cannon . | . . . . Launcher 9 | . . 2 7 Special 7 | . . . 7 Kinetic 82 | . 14 23 45 Thermal 48 | . 14 23 11 Explosive 9 | . . 2 7 Electromagnetic . | . . . . Robot Hit Streak 12 | . 5 9 12 Robot Miss Streak 4 | . 4 4 2 Penetration Max . | . . . . Secondary Targets 3 | . . 1 2 Max Gunslinging Chain 1 | . . 1 1 Shots Hit Robots 105 | . 17 30 58 Core Hits 54 | . 9 13 32 Critical Kills 1 | . . 1 . Critical Parts Destroyed . | . . . . Critical Strikes 3 | . . 3 . Burn 2 | . . 2 . Destroy 1 | . . 1 . Melee Attacks 15 | . . . 15 Impact . | . . . . Slashing 15 | . . . 15 Piercing . | . . . . Sneak Attacks . | . . . . Combat Hostiles . | . . . . Follow-up Attacks . | . . . . Damage Inflicted 1849 | . 185 394 1270 Guns 809 | . 185 308 316 Cannons . | . . . . Explosions 590 | . . 86 504 Melee 439 | . . . 439 Ramming . | . . . . Kinetic 475 | . 60 122 293 Thermal 345 | . 125 186 34 Explosive 590 | . . 86 504 Electromagnetic . | . . . . Impact . | . . . . Slashing 439 | . . . 439 Piercing . | . . . . Highest Corruption . | . . . . Average Corruption . | . . . . Corruption Purged . | . . . . Corruption Blocked . | . . . . Overload Shots . | . . . . Overflow Damage 4 | . . . 4 Projectiles . | . . . . Explosions . | . . . . Melee 4 | . . . 4 Knockbacks . | . . . . Impact . | . . . . Kinetic . | . . . . Secondary . | . . . . Self-Inflicted Damage 240 | . . . 240 Shots 7 | . . . 7 Rammed . | . . . . Targets Rammed . | . . . . Kicked . | . . . . Crushed . | . . . . Highest Temperature 238 | . 120 238 66 Average Temperature 65 | . 44 94 29 Received Heat Transfer 1158 | . 30 354 774 Effects 1 | . . 1 . Interference 1 | . . 1 . Siege Activations . | . . . . Robots Corrupted . | . . . . Combat Hostiles . | . . . . Parts Fried . | . . . . Impact Corruptions . | . . . . Robots Melted . | . . . . Combat Hostiles . | . . . . Parts Melted 3 | . 2 1 . Heat Transferred 1199 | . 370 679 150 Parts Sabotaged . | . . . . Parts Stolen . | . . . . Parts Stripped . | . . . . Power Chain Reactions . | . . . . Alert | -11 -10 -9 -8 ------- Run | Yrd Mat Mat Mat Peak Influence 281 | . 150 227 281 Initial 95 | . . 63 95 Average 118 | . 82 144 143 Maximum Alert Level 1 | . . 1 1 Low Security (%) 79 | 100 100 72 64 Level 1 20 | . . 27 35 Level 2 . | . . . . Level 3 . | . . . . Level 4 . | . . . . Level 5 . | . . . . High Security . | . . . . Max Security . | . . . . Squads Dispatched 3 | . 1 . 2 Investigation 1 | . 1 . . Extermination . | . . . . Reinforcement 2 | . . . 2 Assault . | . . . . Garrison . | . . . . Intercept . | . . . . Searches Triggered . | . . . . Construction Impeded . | . . . . Haulers Reinforced . | . . . . Active Scanning Responses . | . . . . Cargo Convoy Interrupts . | . . . . Stealth | -11 -10 -9 -8 --------- Run | Yrd Mat Mat Mat Distress Signals 3 | . 1 . 2 Communications Jammed . | . . . . Distress Signals . | . . . . Times Spotted 37 | . 8 14 15 Peak Tracking Total 9 | . 4 7 9 Tactical Retreats 1 | . . . 1 Traps | -11 -10 -9 -8 ------- Run | Yrd Mat Mat Mat Traps Triggered 1 | . 1 . . Indirectly . | . . . . Trap Hack Attempts . | . . . . Triggered . | . . . . Disarmed . | . . . . Reprogrammed . | . . . . Reused . | . . . . Traps Extracted . | . . . . Installed . | . . . . Triggered . | . . . . Machines | -11 -10 -9 -8 ---------- Run | Yrd Mat Mat Mat Machines Disabled 1 | . . . 1 Max in Single Turn 1 | . . . 1 Machines Repaired . | . . . . Machines Dismantled . | . . . . Machines Sabotaged . | . . . . Overloaded Fab Kills . | . . . . Hacking | -11 -10 -9 -8 --------- Run | Yrd Mat Mat Mat Machines Accessed . | . . . . Terminals . | . . . . Fabricators . | . . . . Repair Stations . | . . . . Recycling Units . | . . . . Scanalyzers . | . . . . Garrison Access . | . . . . Total Hacks . | . . . . Successful . | . . . . Failed . | . . . . Catastrophic . | . . . . Database Lockouts . | . . . . Manual . | . . . . Terminals . | . . . . Fabricators . | . . . . Repair Stations . | . . . . Recycling Units . | . . . . Scanalyzers . | . . . . Garrison Access . | . . . . Terminal Hacks . | . . . . Fabricator Hacks . | . . . . Repair Station Hacks . | . . . . Recycling Unit Hacks . | . . . . Scanalyzer . | . . . . Garrison Access Hacks . | . . . . Unauthorized Hacks . | . . . . Terminals . | . . . . Fabricators . | . . . . Repair Stations . | . . . . Recycling Units . | . . . . Scanalyzers . | . . . . Garrison Access . | . . . . Data Cores Recovered . | . . . . Used . | . . . . Hacking Detections . | . . . . Full Trace Events . | . . . . Feedback Events . | . . . . Feedback Blocked . | . . . . Robot Schematics Acquired . | . . . . Robots Built . | . . . . Authchips . | . . . . Time . | . . . . Total Robot Build Rating . | . . . . Part Schematics Acquired . | . . . . Parts Built . | . . . . Authchips . | . . . . Time . | . . . . Total Part Build Rating . | . . . . Parts Repaired . | . . . . Time . | . . . . Parts Recycled . | . . . . Recycled Matter . | . . . . Retrieved Matter . | . . . . Retrieved Components . | . . . . Parts Scanalyzed . | . . . . Part Schematics Acquired . | . . . . Parts Damaged . | . . . . Bothacking | -11 -10 -9 -8 ------------ Run | Yrd Mat Mat Mat Used RIF Installer . | . . . . Robots Hacked . | . . . . Non-combat . | . . . . Combat . | . . . . Robot Hacks Applied . | . . . . Relay Couplers Released . | . . . . Fabnet Peak Effective % . | . . . . Robots Rewired . | . . . . Allies Hacked . | . . . . Hacks Repelled . | . . . . Allies | -11 -10 -9 -8 -------- Run | Yrd Mat Mat Mat Total Allies . | . . . . Largest Group . | . . . . Highest-Rated Group . | . . . . Highest-Rated Ally . | . . . . Total Orders . | . . . . Ally Attacks . | . . . . Total Damage . | . . . . Kills . | . . . . Allies Corrupted . | . . . . Allies Melted . | . . . . Intel | -11 -10 -9 -8 ------- Run | Yrd Mat Mat Mat Robot Analysis Total . | . . . . Derelict Logs Recovered . | . . . . Drone Launches . | . . . . Drone Recoveries . | . . . . Exploration | -11 -10 -9 -8 ------------- Run | Yrd Mat Mat Mat Turns Passed 1210 | 69 330 394 417 Spaces Moved 627 | 40 222 241 124 Core 17 | 14 . . 3 Treads . | . . . . Legs 610 | 26 222 241 121 Wheels . | . . . . Hover . | . . . . Flight . | . . . . Fastest Speed 50 | 50 120 120 100 Average Speed 121 | 135 120 120 122 Slowest Speed 200 | 200 120 120 190 Overloaded Moves . | . . . . Propulsion Burnouts . | . . . . Robots Hopped . | . . . . Cave-ins Triggered . | . . . . Exploration Rate (%) 23 | 5 43 31 13 Regions Visited 3 Branch Regions . Pre-discovered Areas . | . . . . Known Exits Taken . | . . . . Unknown Exits Taken 3 | 1 1 1 . Scrap Searched . | . . . . Spaces Dug . | . . . . Terrain Destroyed 52 | . . 20 32 Melee . | . . . . Projectile . | . . . . AOE 52 | . . 20 32 Terrain Rammed . | . . . . Walls Destroyed . | . . . . Machines Disabled . | . . . . Actions | -11 -10 -9 -8 --------- Run | Yrd Mat Mat Mat Total 934 | 51 261 303 319 Wait 154 | . 14 9 131 Move 624 | 39 221 240 124 Hop . | . . . . Pick Up 16 | 6 3 3 4 Fast Attach 16 | 6 1 7 2 Attach 9 | . . 2 7 Detach 1 | . . 1 . Swap 13 | . 4 7 2 Drop 13 | . 4 9 . Fire 73 | . 14 25 34 Melee 15 | . . . 15 Ram . | . . . . Kick . | . . . . Crush . | . . . . Escape Stasis . | . . . . Rewire . | . . . . Trap . | . . . . Miscellaneous . | . . . . Route ------- -11/Scrapyard -10/Materials (discovered 2 exits: [*Mat] / [*Min]) -9/Materials -8/Materials History --------- Turn | Location | Event 39 | -11/Scrapyard | Discovered new exit (range 13) 70 | -11/Scrapyard | Entered Materials 232 | -10/Materials | Discovered new exit (range 12) 305 | -10/Materials | Build established: Mutant 347 | -10/Materials | Discovered new exit (range 9) 400 | -10/Materials | Entered another Materials area 400 | -9/Materials | Evolved 2 slots: Weapon x2 601 | -9/Materials | Lost 6 parts (2p1n1u2w) 763 | -9/Materials | Discovered new exit (range 15) 794 | -9/Materials | Entered another Materials area 794 | -8/Materials | Evolved 2 slots: Propulsion x1, Utility x1 1130 | -8/Materials | Lost 9 parts (4n1u4w) 1161 | -8/Materials | Core integrity fell below 50% 1208 | -8/Materials | Core integrity fell below 20% 1211 | -8/Materials | Destroyed self with Mini Grenade Launcher Last Messages --------------- 01141_ Y-45 Defender destroyed. 01144_ Critical hit (Burn: +37). 01149_ G-47 Trooper destroyed. 01157_ Aluminum Leg destroyed. 01160_ Critical hit (Burn: +37). 01163_ Destroyed Lgt. Armor Plating. 01177_ Destroyed Beam Rifle. 01178_ Axe destroyed. 01180_ Acquired Welding Torch. 01182_ Acquired Lgt. Armor Plating. 01188_ Sml. Storage Unit destroyed. 01194_ Acquired 60 matter. 01205_ Acquired 10 matter. 01205_ Lgt. Armor Plating destroyed. 01205_ Destroyed Lgt. Armor Plating. 01206_ Acquired 5 matter. 01207_ Repair Station disabled. 01207_ Backup Power I tumbles out of repair station. 01208_ Acquired 10 matter. 01211_ Y-45 Defender destroyed. Map ----- +----------------------------------------------------+ | ???????? ???? ??????????????? | | ???????? ??? ??????????????? | | ???????##/??? #??????????????? | | ??T????? ??# #??????????????? | | ???????? ??# #??????????????? | | ????????? ?# #??????????????? | | ?????????*]?# #??????????????? | | ????#?????]?# #??????????????? | | ????# =??? ## #??????????????? | | ?????######## #??????????????? | | ?????# %#% #??????????????? | | ?????# + #?"""?"""??????? | | ?????# # #?"T"?"""??????? | | ?????# %% # #?????"""??????? | | ?????# ! #?????"""??????? | | ?????# #?????"""??????? | | ###### +??????????????? | | # # #??????????????? | | ### ##???######????? | | """ ## ##### #????? | | """ ## #????? | | """ ## r ####?? | | ## ##### ??? | | ########## ###? | | """ """ #??# ! ! # | | """ """ #?? "T" %@ # | | """ """ #??# ! = # | | #??######## "" # | | #### # #* R" # | | ####+#### + ##### """ # | | ## ###+##+# """ #???# # | | + # #] """ #???####### | | ## # T ! # """ #?????????? | | ## [[!# #! #?????????? | | ## [! # ] ########?????????? | | + [ # #????????????????? | | ## # ] #????????????????? | | ?# ########????????????????? | | ?# #???????????????????????? | | ?######???????????????????????? | | ??????????????????????????????? | | | | | | | | | | | | | | | | | | | +----------------------------------------------------+ Best States ------------- Heat Dissipation 41 Energy Generation 12 Energy Capacity 265 Matter Stores 300 Matter Capacity 300 Sight Range 16 Terrain Scan Density 10 Armor Coverage 150 Evasion (%) 55 Item Schematics ----------------- None Robot Schematics ------------------ None Fabricated ------------ Nothing Alien Tech Used ----------------- None Achievements -------------- None Challenges ------------ None Game ------ Seed SpikedOpticalDrive Manual? 0 Play Time 00:17:12 Cumulative 82.1 hours Start 2024.04.07 @ 22:01:40 End 2024.04.07 @ 22:14:30 Sessions 1 Manual Loads 0 Difficulty Rogue Special Mode None Game No. 56 Rogue 56 Adventurer 0 Explorer 0 Win Type - Total 0 Types 0/0/0/0/0/0/0/0/0 Lore% 32 Gallery% 45 Achievement% 28 Wizard Run 0 Options --------- Layout 0 ASCII 0 Keyboard 0 Movement Mouse Keybinds 0 Fullscreen 1 Font 24/X11 Map View 76x50 Zoom Use 0% Tactical HUD 1 Map Filters NONE Filters NONE Steam 1 RUN: 135dbb9c-ff0b-442e-9b2d-cae4146da64d